Workbook

Sheet INGRESO DE DATOS
A8: COTIZACION DE SEGURO MEDICO INTERNACIONAL
A10: (Para nuevos negocios emitidos a partir del 1 de enero de 2022)
A12: 1. INGRESE LOS DATOS DEL PROPUESTO ASEGURADO :
C14: Nombre del Asegurado principal : | D14: NOMBRE COMPLETO
F16: Número de adultos en la póliza : | G16: 1 | I16: Número de hijos en la póliza : | J16: 0
F18: Edad del titular : | G18: 18 | I18: Edad de cónyuge : | J18: 46
A21: 2. INGRESE EL NOMBRE DE LA AGENCIA ASESORA :
C23: Nombre de la Agencia : | D23: AGENTE
A26: 3. ESCOJA EL PRODUCTO PARA VISUALIZAR LA COTIZACION RESPECTIVA :

Sheet Exclusive
C10: Cotización de Seguro Médico Internacional - Bupa EXCLUSIVE Care
H12: =+'INGRESO DE DATOS'!$D$14 -> NOMBRE COMPLETO
H14: =+'INGRESO DE DATOS'!$D$23 -> AGENTE
J16: =+'INGRESO DE DATOS'!$G$16 -> 1 | M16: =+'INGRESO DE DATOS'!$G$18 -> 18
F17: FECHA DE COTIZACION :
F18: =NOW() -> 2022-01-06T13:25:14.870 | J18: =+'INGRESO DE DATOS'!$J$16 -> 0 | M18: =+'INGRESO DE DATOS'!$J$18 -> 46
I20: FALSE | K20: COMPLICACIONES DE MATERNIDAD
J22: FALSE
F25: Deducibles | H25: PLAN 1 | I25: PLAN 2 | J25: PLAN 3 | K25: PLAN 4 | L25: PLAN 5 | M25: PLAN 6
F26: Dentro del pais de residencia | H26: n/a | I26: 1000 | J26: 2000 | K26: 5000 | L26: 10000 | M26: 20000
F27: Fuera del pais de residencia | H27: n/a | I27: 2000 | J27: 3000 | K27: 5000 | L27: 10000 | M27: 20000
F30: Tarifas Anuales
F31: Prima de Titular : | H31: n/a | I31: =VLOOKUP($M$16,Tablas!$A$6:$H$29,4,TRUE) -> 6009.1 | J31: =VLOOKUP($M$16,Tablas!$A$6:$H$29,5,TRUE) -> 3980.5 | K31: =VLOOKUP($M$16,Tablas!$A$6:$H$29,6,TRUE) -> 2845.1 | L31: =VLOOKUP($M$16,Tablas!$A$6:$H$29,7,TRUE) -> 2012.1 | M31: =VLOOKUP($M$16,Tablas!$A$6:$H$29,8,TRUE) -> 1585.1
F32: Prima de Cónyuge | H32: n/a | I32: =IF($J$16=1,0,(VLOOKUP($M$18,Tablas!$A$6:$H$29,4,TRUE))) -> 0 | J32: =IF($J$16=1,0,(VLOOKUP($M$18,Tablas!$A$6:$H$29,5,TRUE))) -> 0 | K32: =IF($J$16=1,0,(VLOOKUP($M$18,Tablas!$A$6:$H$29,6,TRUE))) -> 0 | L32: =IF($J$16=1,0,(VLOOKUP($M$18,Tablas!$A$6:$H$29,7,TRUE))) -> 0 | M32: =IF($J$16=1,0,(VLOOKUP($M$18,Tablas!$A$6:$H$29,8,TRUE))) -> 0
F33: Primas Hijos : | H33: n/a | I33: =IF($J$18=0,0,(VLOOKUP($J$18,Tablas!$A$30:$H$32,4,TRUE))) -> 0 | J33: =IF($J$18=0,0,(VLOOKUP($J$18,Tablas!$A$30:$H$32,5,TRUE))) -> 0 | K33: =IF($J$18=0,0,(VLOOKUP($J$18,Tablas!$A$30:$H$32,6,TRUE))) -> 0 | L33: =IF($J$18=0,0,(VLOOKUP($J$18,Tablas!$A$30:$H$32,7,TRUE))) -> 0 | M33: =IF($J$18=0,0,(VLOOKUP($J$18,Tablas!$A$30:$H$32,8,TRUE))) -> 0
F34: Prima Rider Complic. Maternidad | H34: n/a | I34: =+IF($I$20=FALSE,0,Tablas!D$33) -> 0 | J34: =+IF($I$20=FALSE,0,Tablas!E$33) -> 0 | K34: =+IF($I$20=FALSE,0,Tablas!F$33) -> 0 | L34: =+IF($I$20=FALSE,0,Tablas!G$33) -> 0 | M34: =+IF($I$20=FALSE,0,Tablas!H$33) -> 0
F35: TOTAL PRIMA NETA : | H35: n/a | I35: =SUM(I31:I34) -> 6009.1 | J35: =SUM(J31:J34) -> 3980.5 | K35: =SUM(K31:K34) -> 2845.1 | L35: =SUM(L31:L34) -> 2012.1 | M35: =SUM(M31:M34) -> 1585.1
F36: Costo Administrativo Anual : | H36: n/a | I36: 75 | J36: 75 | K36: 75 | L36: 75 | M36: 75
F37: GRAN TOTAL : | H37: n/a | I37: =SUM(I35:I36) -> 6084.1 | J37: =SUM(J35:J36) -> 4055.5 | K37: =SUM(K35:K36) -> 2920.1 | L37: =SUM(L35:L36) -> 2087.1 | M37: =SUM(M35:M36) -> 1660.1
F39: Tarifas Semestrales
F40: Prima de Titular : | H40: n/a | I40: =VLOOKUP($M$16,Tablas!$A$39:$H$62,4,TRUE) -> 3184.823 | J40: =VLOOKUP($M$16,Tablas!$A$39:$H$62,5,TRUE) -> 2109.665 | K40: =VLOOKUP($M$16,Tablas!$A$39:$H$62,6,TRUE) -> 1507.903 | L40: =VLOOKUP($M$16,Tablas!$A$39:$H$62,7,TRUE) -> 1066.413 | M40: =VLOOKUP($M$16,Tablas!$A$39:$H$62,8,TRUE) -> 840.103
F41: Prima de Cónyuge | H41: n/a | I41: =IF($J$16=1,0,(VLOOKUP($M$18,Tablas!$A$39:$H$62,4,TRUE))) -> 0 | J41: =IF($J$16=1,0,(VLOOKUP($M$18,Tablas!$A$39:$H$62,5,TRUE))) -> 0 | K41: =IF($J$16=1,0,(VLOOKUP($M$18,Tablas!$A$39:$H$62,6,TRUE))) -> 0 | L41: =IF($J$16=1,0,(VLOOKUP($M$18,Tablas!$A$39:$H$62,7,TRUE))) -> 0 | M41: =IF($J$16=1,0,(VLOOKUP($M$18,Tablas!$A$39:$H$62,8,TRUE))) -> 0
F42: Primas Hijos : | H42: n/a | I42: =IF($J$18=0,0,(VLOOKUP($J$18,Tablas!$A$63:$H$65,4,TRUE))) -> 0 | J42: =IF($J$18=0,0,(VLOOKUP($J$18,Tablas!$A$63:$H$65,5,TRUE))) -> 0 | K42: =IF($J$18=0,0,(VLOOKUP($J$18,Tablas!$A$63:$H$65,6,TRUE))) -> 0 | L42: =IF($J$18=0,0,(VLOOKUP($J$18,Tablas!$A$63:$H$65,7,TRUE))) -> 0 | M42: =IF($J$18=0,0,(VLOOKUP($J$18,Tablas!$A$63:$H$65,8,TRUE))) -> 0
F43: Prima Rider Complic. Maternidad | H43: n/a | I43: =+IF($I$20=FALSE,0,Tablas!D$66) -> 0 | J43: =+IF($I$20=FALSE,0,Tablas!E$66) -> 0 | K43: =+IF($I$20=FALSE,0,Tablas!F$66) -> 0 | L43: =+IF($I$20=FALSE,0,Tablas!G$66) -> 0 | M43: =+IF($I$20=FALSE,0,Tablas!H$66) -> 0
F44: TOTAL PRIMA NETA : | H44: n/a | I44: =SUM(I40:I43) -> 3184.823 | J44: =SUM(J40:J43) -> 2109.665 | K44: =SUM(K40:K43) -> 1507.903 | L44: =SUM(L40:L43) -> 1066.413 | M44: =SUM(M40:M43) -> 840.103
F45: Costo Administrativo Anual : | H45: n/a | I45: 75 | J45: 75 | K45: 75 | L45: 75 | M45: 75
F46: GRAN TOTAL (1ra Cuota) : | H46: n/a | I46: =SUM(I44:I45) -> 3259.823 | J46: =SUM(J44:J45) -> 2184.665 | K46: =SUM(K44:K45) -> 1582.903 | L46: =SUM(L44:L45) -> 1141.413 | M46: =SUM(M44:M45) -> 915.103
F47: GRAN TOTAL (2da Cuota) : | H47: n/a | I47: =I44 -> 3184.823 | J47: =J44 -> 2109.665 | K47: 1507.903 | L47: 1066.413 | M47: 840.103
F48: Tarifas en US$ — Válidas desde 01 enero de 2022
F50: Este presupuesto solamente tiene carácter informativo y en ningún momento expresa compromiso legal para suministrarle cobertura de seguro. La emisión de una póliza de seguro Bupa está sujeta a todas las evaluaciones de riesgo por parte de Bupa y a la recepción de todos los pagos de prima requeridos.

Sheet Privilege
C10: Cotización de Seguro Médico Internacional - Bupa PRIVILEGE Care
H12: =+'INGRESO DE DATOS'!$D$14 -> NOMBRE COMPLETO
H14: =+'INGRESO DE DATOS'!$D$23 -> AGENTE
J16: =+'INGRESO DE DATOS'!$G$16 -> 1 | M16: =+'INGRESO DE DATOS'!$G$18 -> 18
F17: FECHA DE COTIZACION :
F18: =NOW() -> 2022-01-06T13:25:14.870 | J18: =+'INGRESO DE DATOS'!$J$16 -> 0 | M18: =+'INGRESO DE DATOS'!$J$18 -> 46
I20: FALSE | K20: COMPLICACIONES DE MATERNIDAD
J22: FALSE
F25: Deducibles | H25: PLAN 1 | I25: PLAN 2 | J25: PLAN 3 | K25: PLAN 4 | L25: PLAN 5 | M25: PLAN 6
F26: Dentro del pais de residencia | H26: n/a | I26: 1000 | J26: 2000 | K26: 5000 | L26: 10000 | M26: 20000
F27: Fuera del pais de residencia | H27: n/a | I27: 2000 | J27: 3000 | K27: 5000 | L27: 10000 | M27: 20000
F30: Tarifas Anuales
F31: Prima de Titular : | H31: n/a | I31: =VLOOKUP($M$16,Tablas!$A$140:$H$163,4,TRUE) -> 5057.1 | J31: =VLOOKUP($M$16,Tablas!$A$140:$H$163,5,TRUE) -> 3481.4 | K31: =VLOOKUP($M$16,Tablas!$A$140:$H$163,6,TRUE) -> 2472 | L31: =VLOOKUP($M$16,Tablas!$A$140:$H$163,7,TRUE) -> 1739.1 | M31: =VLOOKUP($M$16,Tablas!$A$140:$H$163,8,TRUE) -> 1328.2
F32: Prima de Cónyuge | H32: n/a | I32: =IF($J$16=1,0,(VLOOKUP($M$18,Tablas!$A$140:$H$163,4,TRUE))) -> 0 | J32: =IF($J$16=1,0,(VLOOKUP($M$18,Tablas!$A$140:$H$163,5,TRUE))) -> 0 | K32: =IF($J$16=1,0,(VLOOKUP($M$18,Tablas!$A$140:$H$163,6,TRUE))) -> 0 | L32: =IF($J$16=1,0,(VLOOKUP($M$18,Tablas!$A$140:$H$163,7,TRUE))) -> 0 | M32: =IF($J$16=1,0,(VLOOKUP($M$18,Tablas!$A$140:$H$163,8,TRUE))) -> 0
F33: Primas Hijos : | H33: n/a | I33: =IF($J$18=0,0,(VLOOKUP($J$18,Tablas!$A$164:$H$166,4,TRUE))) -> 0 | J33: =IF($J$18=0,0,(VLOOKUP($J$18,Tablas!$A$164:$H$166,5,TRUE))) -> 0 | K33: =IF($J$18=0,0,(VLOOKUP($J$18,Tablas!$A$164:$H$166,6,TRUE))) -> 0 | L33: =IF($J$18=0,0,(VLOOKUP($J$18,Tablas!$A$164:$H$166,7,TRUE))) -> 0 | M33: =IF($J$18=0,0,(VLOOKUP($J$18,Tablas!$A$164:$H$166,8,TRUE))) -> 0
F34: Prima Rider Complic. Maternidad | H34: n/a | I34: =+IF($I$20=FALSE,0,Tablas!D$167) -> 0 | J34: =+IF($I$20=FALSE,0,Tablas!E$167) -> 0 | K34: =+IF($I$20=FALSE,0,Tablas!F$167) -> 0 | L34: =+IF($I$20=FALSE,0,Tablas!G$167) -> 0 | M34: =+IF($I$20=FALSE,0,Tablas!H$167) -> 0
F35: TOTAL PRIMA NETA : | H35: n/a | I35: =SUM(I31:I34) -> 5057.1 | J35: =SUM(J31:J34) -> 3481.4 | K35: =SUM(K31:K34) -> 2472 | L35: =SUM(L31:L34) -> 1739.1 | M35: =SUM(M31:M34) -> 1328.2
F36: Costo Administrativo Anual : | H36: n/a | I36: 75 | J36: 75 | K36: 75 | L36: 75 | M36: 75
F37: GRAN TOTAL : | H37: n/a | I37: =SUM(I35:I36) -> 5132.1 | J37: =SUM(J35:J36) -> 3556.4 | K37: =SUM(K35:K36) -> 2547 | L37: =SUM(L35:L36) -> 1814.1 | M37: =SUM(M35:M36) -> 1403.2
F39: Tarifas Semestrales
F40: Prima de Titular : | H40: n/a | I40: =VLOOKUP($M$16,Tablas!$A$173:$H$196,4,TRUE) -> 2680.263 | J40: =VLOOKUP($M$16,Tablas!$A$173:$H$196,5,TRUE) -> 1845.142 | K40: =VLOOKUP($M$16,Tablas!$A$173:$H$196,6,TRUE) -> 1310.16 | L40: =VLOOKUP($M$16,Tablas!$A$173:$H$196,7,TRUE) -> 921.723 | M40: =VLOOKUP($M$16,Tablas!$A$173:$H$196,8,TRUE) -> 703.946
F41: Prima de Cónyuge | H41: n/a | I41: =IF($J$16=1,0,(VLOOKUP($M$18,Tablas!$A$173:$H$196,4,TRUE))) -> 0 | J41: =IF($J$16=1,0,(VLOOKUP($M$18,Tablas!$A$173:$H$196,5,TRUE))) -> 0 | K41: =IF($J$16=1,0,(VLOOKUP($M$18,Tablas!$A$173:$H$196,6,TRUE))) -> 0 | L41: =IF($J$16=1,0,(VLOOKUP($M$18,Tablas!$A$173:$H$196,7,TRUE))) -> 0 | M41: =IF($J$16=1,0,(VLOOKUP($M$18,Tablas!$A$173:$H$196,8,TRUE))) -> 0
F42: Primas Hijos : | H42: n/a | I42: =IF($J$18=0,0,(VLOOKUP($J$18,Tablas!$A$197:$H$199,4,TRUE))) -> 0 | J42: =IF($J$18=0,0,(VLOOKUP($J$18,Tablas!$A$197:$H$199,5,TRUE))) -> 0 | K42: =IF($J$18=0,0,(VLOOKUP($J$18,Tablas!$A$197:$H$199,6,TRUE))) -> 0 | L42: =IF($J$18=0,0,(VLOOKUP($J$18,Tablas!$A$197:$H$199,7,TRUE))) -> 0 | M42: =IF($J$18=0,0,(VLOOKUP($J$18,Tablas!$A$197:$H$199,8,TRUE))) -> 0
F43: Prima Rider Complic. Maternidad | H43: n/a | I43: =+IF($I$20=FALSE,0,Tablas!D$200) -> 0 | J43: =+IF($I$20=FALSE,0,Tablas!E$200) -> 0 | K43: =+IF($I$20=FALSE,0,Tablas!F$200) -> 0 | L43: =+IF($I$20=FALSE,0,Tablas!G$200) -> 0 | M43: =+IF($I$20=FALSE,0,Tablas!H$200) -> 0
F44: TOTAL PRIMA NETA : | H44: n/a | I44: =SUM(I40:I43) -> 2680.263 | J44: =SUM(J40:J43) -> 1845.142 | K44: =SUM(K40:K43) -> 1310.16 | L44: =SUM(L40:L43) -> 921.723 | M44: =SUM(M40:M43) -> 703.946
F45: Costo Administrativo Anual : | H45: n/a | I45: 75 | J45: 75 | K45: 75 | L45: 75 | M45: 75
F46: GRAN TOTAL (1ra Cuota) : | H46: n/a | I46: =SUM(I44:I45) -> 2755.263 | J46: =SUM(J44:J45) -> 1920.142 | K46: =SUM(K44:K45) -> 1385.16 | L46: =SUM(L44:L45) -> 996.723 | M46: =SUM(M44:M45) -> 778.946
F47: GRAN TOTAL (2da Cuota) : | H47: n/a | I47: =I44 -> 2680.263 | J47: =J44 -> 1845.142 | K47: 1310.16 | L47: 921.723 | M47: 703.946
F48: Tarifas en US$ — Válidas desde 01 enero de 2022
F50: Este presupuesto solamente tiene carácter informativo y en ningún momento expresa compromiso legal para suministrarle cobertura de seguro. La emisión de una póliza de seguro Bupa está sujeta a todas las evaluaciones de riesgo por parte de Bupa y a la recepción de todos los pagos de prima requeridos.

Sheet Advantage (Mundial)
C10: Cotización de Seguro Médico Internacional - Bupa ADVANTAGE Care
H12: =+'INGRESO DE DATOS'!$D$14 -> NOMBRE COMPLETO
H14: =+'INGRESO DE DATOS'!$D$23 -> AGENTE
J16: =+'INGRESO DE DATOS'!$G$16 -> 1 | M16: =+'INGRESO DE DATOS'!$G$18 -> 18
F17: FECHA DE COTIZACION :
F18: =NOW() -> 2022-01-06T13:25:14.870 | J18: =+'INGRESO DE DATOS'!$J$16 -> 0 | M18: =+'INGRESO DE DATOS'!$J$18 -> 46
I20: FALSE | K20: COMPLICACIONES DE MATERNIDAD
I22: FALSE | K22: TRASPLANTE DE ORGANOS
F25: Deducibles | H25: PLAN 1 | I25: PLAN 2 | J25: PLAN 3 | K25: PLAN 4 | L25: PLAN 5 | M25: PLAN 6
F26: Dentro del pais de residencia | H26: n/a | I26: 1000 | J26: 2000 | K26: 5000 | L26: 10000 | M26: 20000
F27: Fuera del pais de residencia | H27: n/a | I27: 2000 | J27: 3000 | K27: 5000 | L27: 10000 | M27: 20000
F30: Tarifas Anuales
F31: Prima de Titular : | H31: n/a | I31: =VLOOKUP($M$16,Tablas!$A$274:$H$297,4,TRUE) -> 3339.3 | J31: =VLOOKUP($M$16,Tablas!$A$274:$H$297,5,TRUE) -> 2514 | K31: =VLOOKUP($M$16,Tablas!$A$274:$H$297,6,TRUE) -> 1910.6 | L31: =VLOOKUP($M$16,Tablas!$A$274:$H$297,7,TRUE) -> 1457.7 | M31: =VLOOKUP($M$16,Tablas!$A$274:$H$297,8,TRUE) -> 1158.8
F32: Prima de Cónyuge | H32: n/a | I32: =IF($J$16=1,0,(VLOOKUP($M$18,Tablas!$A$274:$H$297,4,TRUE))) -> 0 | J32: =IF($J$16=1,0,(VLOOKUP($M$18,Tablas!$A$274:$H$297,5,TRUE))) -> 0 | K32: =IF($J$16=1,0,(VLOOKUP($M$18,Tablas!$A$274:$H$297,6,TRUE))) -> 0 | L32: =IF($J$16=1,0,(VLOOKUP($M$18,Tablas!$A$274:$H$297,7,TRUE))) -> 0 | M32: =IF($J$16=1,0,(VLOOKUP($M$18,Tablas!$A$274:$H$297,8,TRUE))) -> 0
F33: Primas Hijos : | H33: n/a | I33: =IF($J$18=0,0,(VLOOKUP($J$18,Tablas!$A$298:$H$300,4,TRUE))) -> 0 | J33: =IF($J$18=0,0,(VLOOKUP($J$18,Tablas!$A$298:$H$300,5,TRUE))) -> 0 | K33: =IF($J$18=0,0,(VLOOKUP($J$18,Tablas!$A$298:$H$300,6,TRUE))) -> 0 | L33: =IF($J$18=0,0,(VLOOKUP($J$18,Tablas!$A$298:$H$300,7,TRUE))) -> 0 | M33: =IF($J$18=0,0,(VLOOKUP($J$18,Tablas!$A$298:$H$300,8,TRUE))) -> 0
F34: Prima Rider Complic. Maternidad | H34: n/a | I34: =+IF($I$20=FALSE,0,Tablas!D$301) -> 0 | J34: =+IF($I$20=FALSE,0,Tablas!E$301) -> 0 | K34: =+IF($I$20=FALSE,0,Tablas!F$301) -> 0 | L34: =+IF($I$20=FALSE,0,Tablas!G$301) -> 0 | M34: =+IF($I$20=FALSE,0,Tablas!H$301) -> 0
F35: Prima Rider Trasplante Organos | H35: n/a | I35: =IF($I$22=FALSE,0,Tablas!D$302) -> 0 | J35: =IF($I$22=FALSE,0,Tablas!E$302) -> 0 | K35: =IF($I$22=FALSE,0,Tablas!F$302) -> 0 | L35: =IF($I$22=FALSE,0,Tablas!G$302) -> 0 | M35: =IF($I$22=FALSE,0,Tablas!H$302) -> 0
F36: TOTAL PRIMA NETA : | H36: n/a | I36: =SUM(I31:I35) -> 3339.3 | J36: 2514 | K36: 1910.6 | L36: 1457.7 | M36: 1158.8
F37: Costo Administrativo Anual : | H37: n/a | I37: 75 | J37: 75 | K37: 75 | L37: 75 | M37: 75
F38: GRAN TOTAL : | H38: n/a | I38: =SUM(I36:I37) -> 3414.3 | J38: =SUM(J36:J37) -> 2589 | K38: =SUM(K36:K37) -> 1985.6 | L38: =SUM(L36:L37) -> 1532.7 | M38: =SUM(M36:M37) -> 1233.8
F40: Tarifas Semestrales
F41: Prima de Titular : | H41: n/a | I41: =VLOOKUP($M$16,Tablas!$A$307:$H$330,4,TRUE) -> 1769.829 | J41: =VLOOKUP($M$16,Tablas!$A$307:$H$330,5,TRUE) -> 1332.42 | K41: =VLOOKUP($M$16,Tablas!$A$307:$H$330,6,TRUE) -> 1012.618 | L41: =VLOOKUP($M$16,Tablas!$A$307:$H$330,7,TRUE) -> 772.581 | M41: =VLOOKUP($M$16,Tablas!$A$307:$H$330,8,TRUE) -> 614.164
F42: Prima de Cónyuge | H42: n/a | I42: =IF($J$16=1,0,(VLOOKUP($M$18,Tablas!$A$307:$H$330,4,TRUE))) -> 0 | J42: =IF($J$16=1,0,(VLOOKUP($M$18,Tablas!$A$307:$H$330,5,TRUE))) -> 0 | K42: =IF($J$16=1,0,(VLOOKUP($M$18,Tablas!$A$307:$H$330,6,TRUE))) -> 0 | L42: =IF($J$16=1,0,(VLOOKUP($M$18,Tablas!$A$307:$H$330,7,TRUE))) -> 0 | M42: =IF($J$16=1,0,(VLOOKUP($M$18,Tablas!$A$307:$H$330,8,TRUE))) -> 0
F43: Primas Hijos : | H43: n/a | I43: =IF($J$18=0,0,(VLOOKUP($J$18,Tablas!$A$331:$H$333,4,TRUE))) -> 0 | J43: =IF($J$18=0,0,(VLOOKUP($J$18,Tablas!$A$331:$H$333,5,TRUE))) -> 0 | K43: =IF($J$18=0,0,(VLOOKUP($J$18,Tablas!$A$331:$H$333,6,TRUE))) -> 0 | L43: =IF($J$18=0,0,(VLOOKUP($J$18,Tablas!$A$331:$H$333,7,TRUE))) -> 0 | M43: =IF($J$18=0,0,(VLOOKUP($J$18,Tablas!$A$331:$H$333,8,TRUE))) -> 0
F44: Prima Rider Complic. Maternidad | H44: n/a | I44: =+IF($I$20=FALSE,0,Tablas!D$334) -> 0 | J44: =+IF($I$20=FALSE,0,Tablas!E$334) -> 0 | K44: =+IF($I$20=FALSE,0,Tablas!F$334) -> 0 | L44: =+IF($I$20=FALSE,0,Tablas!G$334) -> 0 | M44: =+IF($I$20=FALSE,0,Tablas!H$334) -> 0
F45: Prima Rider Trasplante Organos | H45: n/a | I45: =IF($I$22=FALSE,0,Tablas!D$335) -> 0 | J45: =IF($I$22=FALSE,0,Tablas!E$335) -> 0 | K45: =IF($I$22=FALSE,0,Tablas!F$335) -> 0 | L45: =IF($I$22=FALSE,0,Tablas!G$335) -> 0 | M45: =IF($I$22=FALSE,0,Tablas!H$335) -> 0
F46: TOTAL PRIMA NETA : | H46: n/a | I46: =SUM(I41:I45) -> 1769.829 | J46: 1332.42 | K46: 1012.618 | L46: 772.581 | M46: 614.164
F47: Costo Administrativo Anual : | H47: n/a | I47: 75 | J47: 75 | K47: 75 | L47: 75 | M47: 75
F48: GRAN TOTAL (1ra Cuota) : | H48: n/a | I48: =SUM(I46:I47) -> 1844.829 | J48: =SUM(J46:J47) -> 1407.42 | K48: =SUM(K46:K47) -> 1087.618 | L48: =SUM(L46:L47) -> 847.581 | M48: =SUM(M46:M47) -> 689.164
F49: GRAN TOTAL (2da Cuota) : | H49: n/a | I49: =I46 -> 1769.829 | J49: =J46 -> 1332.42 | K49: 1012.618 | L49: 772.581 | M49: 614.164
F50: Tarifas en US$ — Válidas desde 01 enero de 2022
F52: Este presupuesto solamente tiene carácter informativo y en ningún momento expresa compromiso legal para suministrarle cobertura de seguro. La emisión de una póliza de seguro Bupa está sujeta a todas las evaluaciones de riesgo por parte de Bupa y a la recepción de todos los pagos de prima requeridos.

Sheet Advantage (LA) (hidden)
A10: Cotización de Seguro Médico Internacional - Bupa ADVANTAGE Care (cobertura solo Latinoamérica)
A12: Bupa Advantage Care (cobertura solo en Latinoamérica) | H12: =+'INGRESO DE DATOS'!$D$14 -> NOMBRE COMPLETO
A13: Cobertura Máxima anual | C13: US $ 3,500,000
A14: Cobertura Geografica | C14: Limitada a Latinoamérica excluyendo México | H14: =+'INGRESO DE DATOS'!$D$23 -> AGENTE
A15: Condiciones médicas cubiertas | C15: Todas las condiciones médicas
A16: Redes de proveedores | C16: Red de Proveedores "Bupa Advantage" | J16: =+'INGRESO DE DATOS'!$G$16 -> 1 | M16: =+'INGRESO DE DATOS'!$G$18 -> 18
A17: Opciones fuera de la Red | C17: NO, solo en casos de emergencia | F17: FECHA DE COTIZACION :
A18: Requiere preautorización | C18: SI, 30% de penalización por omitir prenotificación | F18: =NOW() -> 2022-01-06T13:25:14.870 | J18: =+'INGRESO DE DATOS'!$J$16 -> 0 | M18: =+'INGRESO DE DATOS'!$J$18 -> 46
A20: Número máximo de días de hospitalización | C20: Ilimitado | I20: TRUE | K20: COMPLICACIONES DE MATERNIDAD
A21: Habitación y alimentación | C21: 100% dentro de Red Bupa
C22: "UCR" para L.A. en emergencias fuera de Red Bupa | I22: TRUE | K22: TRASPLANTE DE ORGANOS
A23: Cuidados Intensivos | C23: 100% dentro de Red Bupa
C24: "UCR" para L.A. en emergencias fuera de Red Bupa
A25: Cobertura de Maternidad | C25: $5,000 (Excepto planes 4,5, y 6) | F25: Deducibles | H25: PLAN 1 | I25: PLAN 2 | J25: PLAN 3 | K25: PLAN 4 | L25: PLAN 5 | M25: PLAN 6
A26: Cobertura Provisional de Recién Nacido | C26: $30,000 por los primeros 90 días | F26: Dentro del pais de residencia | H26: n/a | I26: 1000 | J26: 2000 | K26: 5000 | L26: 10000 | M26: 20000
A27: Cuidado del Recién Nacido saludable | C27: Ya incluída dentro del beneficio de Maternidad | F27: Fuera del pais de residencia | H27: n/a | I27: 2000 | J27: 3000 | K27: 5000 | L27: 10000 | M27: 20000
A28: Cobertura de Complicaciones de Maternidad | C28: Disponible a través de cobertura opcional adicional
A29: Trasplante de Organos | C29: $1,000,000 de por vida, por diagnóstico
A30: Condiciones congénitas y hereditarias | C30: <18 años $300,000 de por vida; >=18 al 100% | F30: Tarifas Anuales
A31: Coberturas opcionales (Riders) | C31: Complicaciones de Maternidad por $500,000 | F31: Prima de Titular : | H31: n/a | I31: =VLOOKUP($M$16,Tablas!$A$341:$H$364,4,TRUE) -> 0 | J31: =VLOOKUP($M$16,Tablas!$A$341:$H$364,5,TRUE) -> 0 | K31: =VLOOKUP($M$16,Tablas!$A$341:$H$364,6,TRUE) -> 0 | L31: =VLOOKUP($M$16,Tablas!$A$341:$H$364,7,TRUE) -> 0 | M31: =VLOOKUP($M$16,Tablas!$A$341:$H$364,8,TRUE) -> 0
C32: Trasplante de órganos por $ 300,000 adicionales | F32: Prima de Cónyuge | H32: n/a | I32: =IF($J$16=1,0,(VLOOKUP($M$18,Tablas!$A$341:$H$364,4,TRUE))) -> 0 | J32: =IF($J$16=1,0,(VLOOKUP($M$18,Tablas!$A$341:$H$364,5,TRUE))) -> 0 | K32: =IF($J$16=1,0,(VLOOKUP($M$18,Tablas!$A$341:$H$364,6,TRUE))) -> 0 | L32: =IF($J$16=1,0,(VLOOKUP($M$18,Tablas!$A$341:$H$364,7,TRUE))) -> 0 | M32: =IF($J$16=1,0,(VLOOKUP($M$18,Tablas!$A$341:$H$364,8,TRUE))) -> 0
A33: Acompañamiento de menores hospitalizados | C33: $300 por día | F33: Primas Hijos : | H33: n/a | I33: =IF($J$18=0,0,(VLOOKUP($J$18,Tablas!$A$365:$H$367,4,TRUE))) -> 0 | J33: =IF($J$18=0,0,(VLOOKUP($J$18,Tablas!$A$365:$H$367,5,TRUE))) -> 0 | K33: =IF($J$18=0,0,(VLOOKUP($J$18,Tablas!$A$365:$H$367,6,TRUE))) -> 0 | L33: =IF($J$18=0,0,(VLOOKUP($J$18,Tablas!$A$365:$H$367,7,TRUE))) -> 0 | M33: =IF($J$18=0,0,(VLOOKUP($J$18,Tablas!$A$365:$H$367,8,TRUE))) -> 0
A34: Ambulancia aérea | C34: $100,000 por año y ticket aéreo de retorno | F34: Prima Rider Complic. Maternidad | H34: n/a | I34: =+IF($I$20=FALSE,0,Tablas!D$368) -> 0 | J34: =+IF($I$20=FALSE,0,Tablas!E$368) -> 0 | K34: =+IF($I$20=FALSE,0,Tablas!F$368) -> 0 | L34: =+IF($I$20=FALSE,0,Tablas!G$368) -> 0 | M34: =+IF($I$20=FALSE,0,Tablas!H$368) -> 0
A35: Repatriación restos mortales | C35: 1 | F35: Prima Rider Trasplante Organos | H35: n/a | I35: =IF($I$22=FALSE,0,Tablas!D$369) -> 0 | J35: =IF($I$22=FALSE,0,Tablas!E$369) -> 0 | K35: =IF($I$22=FALSE,0,Tablas!F$369) -> 0 | L35: =IF($I$22=FALSE,0,Tablas!G$369) -> 0 | M35: =IF($I$22=FALSE,0,Tablas!H$369) -> 0
A36: Medicamentos por receta | C36: $6,000 por Asegurado, por año póliza | F36: TOTAL PRIMA NETA : | H36: n/a | I36: =SUM(I31:I35) -> 0 | J36: 0 | K36: 0 | L36: 0 | M36: 0
A37: Almacenamiento de sangre de cordon umbilical | C37: $500 (Excepto planes 4,5, y 6) | F37: Costo Administrativo Anual : | H37: n/a | I37: 75 | J37: 75 | K37: 75 | L37: 75 | M37: 75
F38: GRAN TOTAL : | H38: n/a | I38: =SUM(I36:I37) -> 75 | J38: =SUM(J36:J37) -> 75 | K38: =SUM(K36:K37) -> 75 | L38: =SUM(L36:L37) -> 75 | M38: =SUM(M36:M37) -> 75
A39: Atención médica en el hogar | C39: 100% de usual/acostumbrado y razonable
A40: Rehabilitación | C40: 100% de usual/acostumbrado y razonable | F40: Tarifas Semestrales
A41: Residencia y cuidados paliativos | C41: 100% de usual/acostumbrado y razonable | F41: Prima de Titular : | H41: n/a | I41: =VLOOKUP($M$16,Tablas!$A$374:$H$397,4,TRUE) -> 0 | J41: =VLOOKUP($M$16,Tablas!$A$374:$H$397,5,TRUE) -> 0 | K41: =VLOOKUP($M$16,Tablas!$A$374:$H$397,6,TRUE) -> 0 | L41: =VLOOKUP($M$16,Tablas!$A$374:$H$397,7,TRUE) -> 0 | M41: =VLOOKUP($M$16,Tablas!$A$374:$H$397,8,TRUE) -> 0
A42: Cobertura de actividades peligrosas | C42: 1 | F42: Prima de Cónyuge | H42: n/a | I42: =IF($J$16=1,0,(VLOOKUP($M$18,Tablas!$A$374:$H$397,4,TRUE))) -> 0 | J42: =IF($J$16=1,0,(VLOOKUP($M$18,Tablas!$A$374:$H$397,5,TRUE))) -> 0 | K42: =IF($J$16=1,0,(VLOOKUP($M$18,Tablas!$A$374:$H$397,6,TRUE))) -> 0 | L42: =IF($J$16=1,0,(VLOOKUP($M$18,Tablas!$A$374:$H$397,7,TRUE))) -> 0 | M42: =IF($J$16=1,0,(VLOOKUP($M$18,Tablas!$A$374:$H$397,8,TRUE))) -> 0
A43: Chequeos generales de rutina | C43: Hasta US$150 por año póliza.Sin deducible | F43: Primas Hijos : | H43: n/a | I43: =IF($J$18=0,0,(VLOOKUP($J$18,Tablas!$A$398:$H$400,4,TRUE))) -> 0 | J43: =IF($J$18=0,0,(VLOOKUP($J$18,Tablas!$A$398:$H$400,5,TRUE))) -> 0 | K43: =IF($J$18=0,0,(VLOOKUP($J$18,Tablas!$A$398:$H$400,6,TRUE))) -> 0 | L43: =IF($J$18=0,0,(VLOOKUP($J$18,Tablas!$A$398:$H$400,7,TRUE))) -> 0 | M43: =IF($J$18=0,0,(VLOOKUP($J$18,Tablas!$A$398:$H$400,8,TRUE))) -> 0
A44: Cobertura de VIH, SIDA, CAS | C44: Solo como efecto de transfusión de sangre | F44: Prima Rider Complic. Maternidad | H44: n/a | I44: =+IF($I$20=FALSE,0,Tablas!D$401) -> 0 | J44: =+IF($I$20=FALSE,0,Tablas!E$401) -> 0 | K44: =+IF($I$20=FALSE,0,Tablas!F$401) -> 0 | L44: =+IF($I$20=FALSE,0,Tablas!G$401) -> 0 | M44: =+IF($I$20=FALSE,0,Tablas!H$401) -> 0
A45: Cobertura de brazos y piernas artificiales | C45: $30,000 por año y hasta $120,000 de por vida | F45: Prima Rider Trasplante Organos | H45: n/a | I45: =IF($I$22=FALSE,0,Tablas!D$402) -> 0 | J45: =IF($I$22=FALSE,0,Tablas!E$402) -> 0 | K45: =IF($I$22=FALSE,0,Tablas!F$402) -> 0 | L45: =IF($I$22=FALSE,0,Tablas!G$402) -> 0 | M45: =IF($I$22=FALSE,0,Tablas!H$402) -> 0
A46: Cobertura extendida para dependientes en caso de muerte de asegurado principal | C46: 2 años sin costo | F46: TOTAL PRIMA NETA : | H46: n/a | I46: =SUM(I41:I45) -> 0 | J46: 0 | K46: 0 | L46: 0 | M46: 0
F47: Costo Administrativo Anual : | H47: n/a | I47: 75 | J47: 75 | K47: 75 | L47: 75 | M47: 75
F48: GRAN TOTAL (1ra Cuota) : | H48: n/a | I48: =SUM(I46:I47) -> 75 | J48: =SUM(J46:J47) -> 75 | K48: =SUM(K46:K47) -> 75 | L48: =SUM(L46:L47) -> 75 | M48: =SUM(M46:M47) -> 75
F49: GRAN TOTAL (2da Cuota) : | H49: n/a | I49: =I46 -> 0 | J49: =J46 -> 0 | K49: 0 | L49: 0 | M49: 0
F50: Tarifas en US $ - Válidas desde 01 Ene 2013

Sheet Secure
C10: Cotización de Seguro Médico Internacional - Bupa SECURE Care
H12: =+'INGRESO DE DATOS'!$D$14 -> NOMBRE COMPLETO
H14: =+'INGRESO DE DATOS'!$D$23 -> AGENTE
J16: =+'INGRESO DE DATOS'!$G$16 -> 1 | M16: =+'INGRESO DE DATOS'!$G$18 -> 18
F17: FECHA DE COTIZACION :
F18: =NOW() -> 2022-01-06T13:25:14.870 | J18: =+'INGRESO DE DATOS'!$J$16 -> 0 | M18: =+'INGRESO DE DATOS'!$J$18 -> 46
I20: FALSE | K20: COMPLICACIONES DE MATERNIDAD
I22: FALSE | K22: TRASPLANTE DE ORGANOS
F25: Deducibles | H25: PLAN 1 | I25: PLAN 2 | J25: PLAN 3 | K25: PLAN 4 | L25: PLAN 5 | M25: PLAN 6
F26: Dentro del pais de residencia | H26: n/a | I26: 1000 | J26: 2000 | K26: 5000 | L26: 10000 | M26: 20000
F27: Fuera del pais de residencia | H27: n/a | I27: 2000 | J27: 3000 | K27: 5000 | L27: 10000 | M27: 20000
F30: Tarifas Anuales
F31: Prima de Titular : | H31: n/a | I31: =VLOOKUP($M$16,Tablas!$A$408:$H$431,4,TRUE) -> 2375.4 | J31: =VLOOKUP($M$16,Tablas!$A$408:$H$431,5,TRUE) -> 1866.5 | K31: =VLOOKUP($M$16,Tablas!$A$408:$H$431,6,TRUE) -> 1426.2 | L31: =VLOOKUP($M$16,Tablas!$A$408:$H$431,7,TRUE) -> 1223.9 | M31: =VLOOKUP($M$16,Tablas!$A$408:$H$431,8,TRUE) -> 936.9
F32: Prima de Cónyuge | H32: n/a | I32: =IF($J$16=1,0,(VLOOKUP($M$18,Tablas!$A$408:$H$431,4,TRUE))) -> 0 | J32: =IF($J$16=1,0,(VLOOKUP($M$18,Tablas!$A$408:$H$431,5,TRUE))) -> 0 | K32: =IF($J$16=1,0,(VLOOKUP($M$18,Tablas!$A$408:$H$431,6,TRUE))) -> 0 | L32: =IF($J$16=1,0,(VLOOKUP($M$18,Tablas!$A$408:$H$431,7,TRUE))) -> 0 | M32: =IF($J$16=1,0,(VLOOKUP($M$18,Tablas!$A$408:$H$431,8,TRUE))) -> 0
F33: Primas Hijos : | H33: n/a | I33: =IF($J$18=0,0,(VLOOKUP($J$18,Tablas!$A$432:$H$434,4,TRUE))) -> 0 | J33: =IF($J$18=0,0,(VLOOKUP($J$18,Tablas!$A$432:$H$434,5,TRUE))) -> 0 | K33: =IF($J$18=0,0,(VLOOKUP($J$18,Tablas!$A$432:$H$434,6,TRUE))) -> 0 | L33: =IF($J$18=0,0,(VLOOKUP($J$18,Tablas!$A$432:$H$434,7,TRUE))) -> 0 | M33: =IF($J$18=0,0,(VLOOKUP($J$18,Tablas!$A$432:$H$434,8,TRUE))) -> 0
F34: Prima Rider Complic. Maternidad | H34: n/a | I34: =+IF($I$20=FALSE,0,Tablas!D$435) -> 0 | J34: =+IF($I$20=FALSE,0,Tablas!E$435) -> 0 | K34: =+IF($I$20=FALSE,0,Tablas!F$435) -> 0 | L34: =+IF($I$20=FALSE,0,Tablas!G$435) -> 0 | M34: =+IF($I$20=FALSE,0,Tablas!H$435) -> 0
F35: Prima Rider Trasplante Organos | H35: n/a | I35: =IF($I$22=FALSE,0,Tablas!D$436) -> 0 | J35: =IF($I$22=FALSE,0,Tablas!E$436) -> 0 | K35: =IF($I$22=FALSE,0,Tablas!F$436) -> 0 | L35: =IF($I$22=FALSE,0,Tablas!G$436) -> 0 | M35: =IF($I$22=FALSE,0,Tablas!H$436) -> 0
F36: TOTAL PRIMA NETA : | H36: n/a | I36: =SUM(I31:I35) -> 2375.4 | J36: 1866.5 | K36: 1426.2 | L36: 1223.9 | M36: 936.9
F37: Costo Administrativo Anual : | H37: n/a | I37: 75 | J37: 75 | K37: 75 | L37: 75 | M37: 75
F38: GRAN TOTAL : | H38: n/a | I38: =SUM(I36:I37) -> 2450.4 | J38: =SUM(J36:J37) -> 1941.5 | K38: =SUM(K36:K37) -> 1501.2 | L38: =SUM(L36:L37) -> 1298.9 | M38: =SUM(M36:M37) -> 1011.9
F40: Tarifas Semestrales
F41: Prima de Titular : | H41: n/a | I41: =VLOOKUP($M$16,Tablas!$A$441:$H$464,4,TRUE) -> 1258.962 | J41: =VLOOKUP($M$16,Tablas!$A$441:$H$464,5,TRUE) -> 989.245 | K41: =VLOOKUP($M$16,Tablas!$A$441:$H$464,6,TRUE) -> 755.886 | L41: =VLOOKUP($M$16,Tablas!$A$441:$H$464,7,TRUE) -> 648.667 | M41: =VLOOKUP($M$16,Tablas!$A$441:$H$464,8,TRUE) -> 496.557
F42: Prima de Cónyuge | H42: n/a | I42: =IF($J$16=1,0,(VLOOKUP($M$18,Tablas!$A$441:$H$464,4,TRUE))) -> 0 | J42: =IF($J$16=1,0,(VLOOKUP($M$18,Tablas!$A$441:$H$464,5,TRUE))) -> 0 | K42: =IF($J$16=1,0,(VLOOKUP($M$18,Tablas!$A$441:$H$464,6,TRUE))) -> 0 | L42: =IF($J$16=1,0,(VLOOKUP($M$18,Tablas!$A$441:$H$464,7,TRUE))) -> 0 | M42: =IF($J$16=1,0,(VLOOKUP($M$18,Tablas!$A$441:$H$464,8,TRUE))) -> 0
F43: Primas Hijos : | H43: n/a | I43: =IF($J$18=0,0,(VLOOKUP($J$18,Tablas!$A$465:$H$467,4,TRUE))) -> 0 | J43: =IF($J$18=0,0,(VLOOKUP($J$18,Tablas!$A$465:$H$467,5,TRUE))) -> 0 | K43: =IF($J$18=0,0,(VLOOKUP($J$18,Tablas!$A$465:$H$467,6,TRUE))) -> 0 | L43: =IF($J$18=0,0,(VLOOKUP($J$18,Tablas!$A$465:$H$467,7,TRUE))) -> 0 | M43: =IF($J$18=0,0,(VLOOKUP($J$18,Tablas!$A$465:$H$467,8,TRUE))) -> 0
F44: Prima Rider Complic. Maternidad | H44: n/a | I44: =+IF($I$20=FALSE,0,Tablas!D$468) -> 0 | J44: =+IF($I$20=FALSE,0,Tablas!E$468) -> 0 | K44: =+IF($I$20=FALSE,0,Tablas!F$468) -> 0 | L44: =+IF($I$20=FALSE,0,Tablas!G$468) -> 0 | M44: =+IF($I$20=FALSE,0,Tablas!H$468) -> 0
F45: Prima Rider Trasplante Organos | H45: n/a | I45: =IF($I$22=FALSE,0,Tablas!D$469) -> 0 | J45: =IF($I$22=FALSE,0,Tablas!E$469) -> 0 | K45: =IF($I$22=FALSE,0,Tablas!F$469) -> 0 | L45: =IF($I$22=FALSE,0,Tablas!G$469) -> 0 | M45: =IF($I$22=FALSE,0,Tablas!H$469) -> 0
F46: TOTAL PRIMA NETA : | H46: n/a | I46: =SUM(I41:I45) -> 1258.962 | J46: 989.245 | K46: 755.886 | L46: 648.667 | M46: 496.557
F47: Costo Administrativo Anual : | H47: n/a | I47: 75 | J47: 75 | K47: 75 | L47: 75 | M47: 75
F48: GRAN TOTAL (1ra Cuota) : | H48: n/a | I48: =SUM(I46:I47) -> 1333.962 | J48: =SUM(J46:J47) -> 1064.245 | K48: =SUM(K46:K47) -> 830.886 | L48: =SUM(L46:L47) -> 723.667 | M48: =SUM(M46:M47) -> 571.557
F49: GRAN TOTAL (2da Cuota) : | H49: n/a | I49: =I46 -> 1258.962 | J49: =J46 -> 989.245 | K49: 755.886 | L49: 648.667 | M49: 496.557
F50: Tarifas en US$ — Válidas desde 01 enero de 2022
F52: Este presupuesto solamente tiene carácter informativo y en ningún momento expresa compromiso legal para suministrarle cobertura de seguro. La emisión de una póliza de seguro Bupa está sujeta a todas las evaluaciones de riesgo por parte de Bupa y a la recepción de todos los pagos de prima requeridos.

Sheet Essential
C10: Cotización de Seguro Médico Internacional - Bupa ESSENTIAL Care
H12: =+'INGRESO DE DATOS'!$D$14 -> NOMBRE COMPLETO
H14: =+'INGRESO DE DATOS'!$D$23 -> AGENTE
J16: =+'INGRESO DE DATOS'!$G$16 -> 1 | M16: =+'INGRESO DE DATOS'!$G$18 -> 18
F17: FECHA DE COTIZACION :
F18: =NOW() -> 2022-01-06T13:25:14.870 | J18: =+'INGRESO DE DATOS'!$J$16 -> 0 | M18: =+'INGRESO DE DATOS'!$J$18 -> 46
I20: FALSE | K20: COMPLICACIONES DE MATERNIDAD
I22: TRUE | K22: TRASPLANTE DE ORGANOS
F25: Deducibles | H25: PLAN 1 | I25: PLAN 2 | J25: PLAN 3 | K25: PLAN 4 | L25: PLAN 5 | M25: PLAN 6
F26: Dentro del pais de residencia | H26: n/a | I26: 1000 | J26: 2000 | K26: 5000 | L26: 10000 | M26: 20000
F27: Fuera del pais de residencia | H27: n/a | I27: 2000 | J27: 3000 | K27: 5000 | L27: 10000 | M27: 20000
F30: Tarifas Anuales
F31: Prima de Titular : | H31: n/a | I31: =VLOOKUP($M$16,Tablas!$A$475:$H$498,4,TRUE) -> 2129 | J31: =VLOOKUP($M$16,Tablas!$A$475:$H$498,5,TRUE) -> 1668.2 | K31: =VLOOKUP($M$16,Tablas!$A$475:$H$498,6,TRUE) -> 1274 | L31: =VLOOKUP($M$16,Tablas!$A$475:$H$498,7,TRUE) -> 1093.1 | M31: =VLOOKUP($M$16,Tablas!$A$475:$H$498,8,TRUE) -> 829.4
F32: Prima de Cónyuge | H32: n/a | I32: =IF($J$16=1,0,(VLOOKUP($M$18,Tablas!$A$475:$H$498,4,TRUE))) -> 0 | J32: =IF($J$16=1,0,(VLOOKUP($M$18,Tablas!$A$475:$H$498,5,TRUE))) -> 0 | K32: =IF($J$16=1,0,(VLOOKUP($M$18,Tablas!$A$475:$H$498,6,TRUE))) -> 0 | L32: =IF($J$16=1,0,(VLOOKUP($M$18,Tablas!$A$475:$H$498,7,TRUE))) -> 0 | M32: =IF($J$16=1,0,(VLOOKUP($M$18,Tablas!$A$475:$H$498,8,TRUE))) -> 0
F33: Primas Hijos : | H33: n/a | I33: =IF($J$18=0,0,(VLOOKUP($J$18,Tablas!$A$499:$H$501,4,TRUE))) -> 0 | J33: =IF($J$18=0,0,(VLOOKUP($J$18,Tablas!$A$499:$H$501,5,TRUE))) -> 0 | K33: =IF($J$18=0,0,(VLOOKUP($J$18,Tablas!$A$499:$H$501,6,TRUE))) -> 0 | L33: =IF($J$18=0,0,(VLOOKUP($J$18,Tablas!$A$499:$H$501,7,TRUE))) -> 0 | M33: =IF($J$18=0,0,(VLOOKUP($J$18,Tablas!$A$499:$H$501,8,TRUE))) -> 0
F34: Prima Rider Complic. Maternidad | H34: n/a | I34: =+IF($I$20=FALSE,0,Tablas!D$502) -> 0 | J34: =+IF($I$20=FALSE,0,Tablas!E$502) -> 0 | K34: =+IF($I$20=FALSE,0,Tablas!F$502) -> 0 | L34: =+IF($I$20=FALSE,0,Tablas!G$502) -> 0 | M34: =+IF($I$20=FALSE,0,Tablas!H$502) -> 0
F35: Prima Rider Trasplante Organos | H35: n/a | I35: =IF($I$22=FALSE,0,Tablas!D$503) -> 300 | J35: =IF($I$22=FALSE,0,Tablas!E$503) -> 300 | K35: =IF($I$22=FALSE,0,Tablas!F$503) -> 300 | L35: =IF($I$22=FALSE,0,Tablas!G$503) -> 300 | M35: =IF($I$22=FALSE,0,Tablas!H$503) -> 300
F36: TOTAL PRIMA NETA : | H36: n/a | I36: =SUM(I31:I35) -> 2429 | J36: 1968.2 | K36: 1574 | L36: 1393.1 | M36: 1129.4
F37: Costo Administrativo Anual : | H37: n/a | I37: 75 | J37: 75 | K37: 75 | L37: 75 | M37: 75
F38: GRAN TOTAL : | H38: n/a | I38: =SUM(I36:I37) -> 2504 | J38: =SUM(J36:J37) -> 2043.2 | K38: =SUM(K36:K37) -> 1649 | L38: =SUM(L36:L37) -> 1468.1 | M38: =SUM(M36:M37) -> 1204.4
F40: Tarifas Semestrales
F41: Prima de Titular : | H41: n/a | I41: =VLOOKUP($M$16,Tablas!$A$508:$H$531,4,TRUE) -> 1128.37 | J41: =VLOOKUP($M$16,Tablas!$A$508:$H$531,5,TRUE) -> 884.146 | K41: =VLOOKUP($M$16,Tablas!$A$508:$H$531,6,TRUE) -> 675.22 | L41: =VLOOKUP($M$16,Tablas!$A$508:$H$531,7,TRUE) -> 579.343 | M41: =VLOOKUP($M$16,Tablas!$A$508:$H$531,8,TRUE) -> 439.582
F42: Prima de Cónyuge | H42: n/a | I42: =IF($J$16=1,0,(VLOOKUP($M$18,Tablas!$A$508:$H$531,4,TRUE))) -> 0 | J42: =IF($J$16=1,0,(VLOOKUP($M$18,Tablas!$A$508:$H$531,5,TRUE))) -> 0 | K42: =IF($J$16=1,0,(VLOOKUP($M$18,Tablas!$A$508:$H$531,6,TRUE))) -> 0 | L42: =IF($J$16=1,0,(VLOOKUP($M$18,Tablas!$A$508:$H$531,7,TRUE))) -> 0 | M42: =IF($J$16=1,0,(VLOOKUP($M$18,Tablas!$A$508:$H$531,8,TRUE))) -> 0
F43: Primas Hijos : | H43: n/a | I43: =IF($J$18=0,0,(VLOOKUP($J$18,Tablas!$A$532:$H$534,4,TRUE))) -> 0 | J43: =IF($J$18=0,0,(VLOOKUP($J$18,Tablas!$A$532:$H$534,5,TRUE))) -> 0 | K43: =IF($J$18=0,0,(VLOOKUP($J$18,Tablas!$A$532:$H$534,6,TRUE))) -> 0 | L43: =IF($J$18=0,0,(VLOOKUP($J$18,Tablas!$A$532:$H$534,7,TRUE))) -> 0 | M43: =IF($J$18=0,0,(VLOOKUP($J$18,Tablas!$A$532:$H$534,8,TRUE))) -> 0
F44: Prima Rider Complic. Maternidad | H44: n/a | I44: =+IF($I$20=FALSE,0,Tablas!D$535) -> 0 | J44: =+IF($I$20=FALSE,0,Tablas!E$535) -> 0 | K44: =+IF($I$20=FALSE,0,Tablas!F$535) -> 0 | L44: =+IF($I$20=FALSE,0,Tablas!G$535) -> 0 | M44: =+IF($I$20=FALSE,0,Tablas!H$535) -> 0
F45: Prima Rider Trasplante Organos | H45: n/a | I45: =IF($I$22=FALSE,0,Tablas!D$536) -> 159 | J45: =IF($I$22=FALSE,0,Tablas!E$536) -> 159 | K45: =IF($I$22=FALSE,0,Tablas!F$536) -> 159 | L45: =IF($I$22=FALSE,0,Tablas!G$536) -> 159 | M45: =IF($I$22=FALSE,0,Tablas!H$536) -> 159
F46: TOTAL PRIMA NETA : | H46: n/a | I46: =SUM(I41:I45) -> 1287.37 | J46: 1043.146 | K46: 834.22 | L46: 738.343 | M46: 598.582
F47: Costo Administrativo Anual : | H47: n/a | I47: 75 | J47: 75 | K47: 75 | L47: 75 | M47: 75
F48: GRAN TOTAL (1ra Cuota) : | H48: n/a | I48: =SUM(I46:I47) -> 1362.37 | J48: =SUM(J46:J47) -> 1118.146 | K48: =SUM(K46:K47) -> 909.22 | L48: =SUM(L46:L47) -> 813.343 | M48: =SUM(M46:M47) -> 673.582
F49: GRAN TOTAL (2da Cuota) : | H49: n/a | I49: =I46 -> 1287.37 | J49: =J46 -> 1043.146 | K49: 834.22 | L49: 738.343 | M49: 598.582
F50: Tarifas en US$ — Válidas desde 01 enero de 2022
F52: Este presupuesto solamente tiene carácter informativo y en ningún momento expresa compromiso legal para suministrarle cobertura de seguro. La emisión de una póliza de seguro Bupa está sujeta a todas las evaluaciones de riesgo por parte de Bupa y a la recepción de todos los pagos de prima requeridos.

Sheet Critical
C10: Cotización de Seguro Médico Internacional - Bupa CRITICAL Care
H12: =+'INGRESO DE DATOS'!$D$14 -> NOMBRE COMPLETO
H14: =+'INGRESO DE DATOS'!$D$23 -> AGENTE
J16: =+'INGRESO DE DATOS'!$G$16 -> 1 | M16: =+'INGRESO DE DATOS'!$G$18 -> 18
F17: FECHA DE COTIZACION :
F18: =NOW() -> 2022-01-06T13:25:14.870 | J18: =+'INGRESO DE DATOS'!$J$16 -> 0 | M18: =+'INGRESO DE DATOS'!$J$18 -> 46
J20: TRUE | M20: =IF(M16>=M18,M16,M18) -> 46
F22: CONDICION CRITICA CUBIERTA | I22: MAXIMO POR AÑO POLIZA | K22: TRASPLANTE DE ORGANOS
F24: Enfermedades neurológicas y accidentes cerebro-vasculares | I24: 150000 | K24: Tipo de trasplante | M24: Máximo Vitalicio
I25: por asegurado por año póliza | M25: por persona
F26: Cirugías cardíacas y angioplastías | I26: 150000 | K26: Corazón | M26: 300000
I27: por asegurado por año póliza | K27: Corazón y Pulmón (simultáneamente) | M27: 300000
F28: Tratamiento de cáncer | I28: 200000 | K28: Pulmón | M28: 250000
I29: por asegurado por año póliza | K29: Pancreas | M29: 250000
F30: Trauma grave (Politraumatismos) | I30: 150000 | K30: Pancreas y Riñón (simultáneamente) | M30: 300000
I31: por asegurado por año póliza | K31: Riñón | M31: 200000
F32: Insuficiencia renal crónica (Diálisis) | I32: 100000 | K32: Hígado | M32: 200000
I33: por asegurado por año póliza | K33: Médula ósea | M33: 250000
F34: Quemaduras graves | I34: 300000 | K34: La cobertura de trasplante de órganos está limitada a la Red de Proveedores para Procedimiento de Trasplante de la Compañía y no se proporcionará cobertura en proveedores fuera de esta Red especializada.
I35: por asegurado por año póliza
F36: Desorden infeccioso grave (Septicemia) | I36: 150000
I37: por asegurado por año póliza
F39: Deducibles | H39: PLAN 1 | I39: PLAN 2 | J39: PLAN 3 | K39: PLAN 4 | L39: PLAN 5 | M39: PLAN 6
F40: Dentro del pais de residencia | H40: 2000 | I40: 3500 | J40: 5000 | K40: 10000 | L40: 20000 | M40: 50000
F41: Fuera del pais de residencia | H41: 2000 | I41: 3500 | J41: 5000 | K41: 10000 | L41: 20000 | M41: 50000
F43: Tarifas Anuales
F44: Prima por plan individual : | H44: =IF((($J$16+$J$18)=1),(VLOOKUP($M$20,Tablas!$A$543:$T$544,3,TRUE)),0) -> 2255 | I44: =IF((($J$16+$J$18)=1),(VLOOKUP($M$20,Tablas!$A$543:$T$544,6,TRUE)),0) -> 1964 | J44: =IF((($J$16+$J$18)=1),(VLOOKUP($M$20,Tablas!$A$543:$T$544,9,TRUE)),0) -> 1682 | K44: =IF((($J$16+$J$18)=1),(VLOOKUP($M$20,Tablas!$A$543:$T$544,12,TRUE)),0) -> 1292 | L44: =IF((($J$16+$J$18)=1),(VLOOKUP($M$20,Tablas!$A$543:$T$544,15,TRUE)),0) -> 917 | M44: =IF((($J$16+$J$18)=1),(VLOOKUP($M$20,Tablas!$A$543:$T$544,18,TRUE)),0) -> 516
F45: Prima por plan para 2 personas : | H45: =IF((($J$16+$J$18)=2),(VLOOKUP($M$20,Tablas!$A$543:$T$544,4,TRUE)),0) -> 0 | I45: =IF((($J$16+$J$18)=2),(VLOOKUP($M$20,Tablas!$A$543:$T$544,7,TRUE)),0) -> 0 | J45: =IF((($J$16+$J$18)=2),(VLOOKUP($M$20,Tablas!$A$543:$T$544,10,TRUE)),0) -> 0 | K45: =IF((($J$16+$J$18)=2),(VLOOKUP($M$20,Tablas!$A$543:$T$544,13,TRUE)),0) -> 0 | L45: =IF((($J$16+$J$18)=2),(VLOOKUP($M$20,Tablas!$A$543:$T$544,16,TRUE)),0) -> 0 | M45: =IF((($J$16+$J$18)=2),(VLOOKUP($M$20,Tablas!$A$543:$T$544,19,TRUE)),0) -> 0
F46: Prima por plan familiar : | H46: =IF((($J$16+$J$18)>=3),(VLOOKUP($M$20,Tablas!$A$543:$T$544,5,TRUE)),0) -> 0 | I46: =IF((($J$16+$J$18)>=3),(VLOOKUP($M$20,Tablas!$A$543:$T$544,8,TRUE)),0) -> 0 | J46: =IF((($J$16+$J$18)>=3),(VLOOKUP($M$20,Tablas!$A$543:$T$544,11,TRUE)),0) -> 0 | K46: =IF((($J$16+$J$18)>=3),(VLOOKUP($M$20,Tablas!$A$543:$T$544,14,TRUE)),0) -> 0 | L46: =IF((($J$16+$J$18)>=3),(VLOOKUP($M$20,Tablas!$A$543:$T$544,17,TRUE)),0) -> 0 | M46: =IF((($J$16+$J$18)>=3),(VLOOKUP($M$20,Tablas!$A$543:$T$544,20,TRUE)),0) -> 0
F47: TOTAL PRIMA NETA : | H47: =SUM(H44:H46) -> 2255 | I47: =SUM(I44:I46) -> 1964 | J47: 1682 | K47: 1292 | L47: 917 | M47: 516
F48: Costo Administrativo Anual : | H48: 75 | I48: 75 | J48: 75 | K48: 75 | L48: 75 | M48: 75
F49: GRAN TOTAL : | H49: =SUM(H47:H48) -> 2330 | I49: 2039 | J49: 1757 | K49: 1367 | L49: 992 | M49: 591
F50: Tarifas en US$ — Válidas desde 01 enero de 2022
F53: Este presupuesto solamente tiene carácter informativo y en ningún momento expresa compromiso legal para suministrarle cobertura de seguro. La emisión de una póliza de seguro Bupa está sujeta a todas las evaluaciones de riesgo por parte de Bupa y a la recepción de todos los pagos de prima requeridos.

Sheet Resumen tarifas anuales
C12: Cotización de Seguro Médico Internacional - BUPA CARE
C14: =+'INGRESO DE DATOS'!$D$14 -> NOMBRE COMPLETO
C16: =+'INGRESO DE DATOS'!$D$23 -> AGENTE
E18: =+'INGRESO DE DATOS'!$G$16 -> 1 | H18: =+'INGRESO DE DATOS'!$G$18 -> 18
A19: FECHA DE COTIZACION :
A20: =NOW() -> 2022-01-06T13:25:14.870 | E20: =+'INGRESO DE DATOS'!$J$16 -> 0 | H20: =+'INGRESO DE DATOS'!$J$18 -> 46
A22: Deducibles | C22: PLAN 1 | D22: PLAN 2 | E22: PLAN 3 | F22: PLAN 4 | G22: PLAN 5 | H22: PLAN 6
A23: Dentro del pais de residencia | C23: n/a | D23: 1000 | E23: 2000 | F23: 5000 | G23: 10000 | H23: 20000
A24: Fuera del pais de residencia | C24: n/a | D24: 2000 | E24: 3000 | F24: 5000 | G24: 10000 | H24: 20000
A26: PRODUCTOS | C26: Tarifas Anuales
A27: Bupa Exclusive Care | C27: n/a | D27: =+Exclusive!I37 -> 6084.1 | E27: =+Exclusive!J37 -> 4055.5 | F27: =+Exclusive!K37 -> 2920.1 | G27: =+Exclusive!L37 -> 2087.1 | H27: =+Exclusive!M37 -> 1660.1
A28: Bupa Privilege Care | C28: n/a | D28: =+Privilege!I37 -> 5132.1 | E28: =+Privilege!J37 -> 3556.4 | F28: =+Privilege!K37 -> 2547 | G28: =+Privilege!L37 -> 1814.1 | H28: =+Privilege!M37 -> 1403.2
A29: Bupa Advantage Care | C29: n/a | D29: =+'Advantage (Mundial)'!I38 -> 3414.3 | E29: =+'Advantage (Mundial)'!J38 -> 2589 | F29: =+'Advantage (Mundial)'!K38 -> 1985.6 | G29: =+'Advantage (Mundial)'!L38 -> 1532.7 | H29: =+'Advantage (Mundial)'!M38 -> 1233.8
A30: Bupa Secure Care | C30: n/a | D30: =+Secure!I38 -> 2450.4 | E30: =+Secure!J38 -> 1941.5 | F30: =+Secure!K38 -> 1501.2 | G30: =+Secure!L38 -> 1298.9 | H30: =+Secure!M38 -> 1011.9
A31: Bupa Essential Care | C31: n/a | D31: =+Essential!I38 -> 2504 | E31: =+Essential!J38 -> 2043.2 | F31: =+Essential!K38 -> 1649 | G31: =+Essential!L38 -> 1468.1 | H31: =+Essential!M38 -> 1204.4
A33: Deducibles | C33: PLAN 1 | D33: PLAN 2 | E33: PLAN 3 | F33: PLAN 4 | G33: PLAN 5 | H33: PLAN 6
A34: Dentro del pais de residencia | C34: 2000 | D34: 3500 | E34: 5000 | F34: 10000 | G34: 20000 | H34: 50000
A35: Fuera del pais de residencia | C35: 2000 | D35: 3500 | E35: 5000 | F35: 10000 | G35: 20000 | H35: 50000
C36: Tarifas Anuales
A37: Bupa Critical Care | C37: =+Critical!H49 -> 2330 | D37: =+Critical!I49 -> 2039 | E37: =+Critical!J49 -> 1757 | F37: =+Critical!K49 -> 1367 | G37: =+Critical!L49 -> 992 | H37: =+Critical!M49 -> 591
A38: Tarifas en US$ — Válidas desde 01 enero de 2022
A40: Este presupuesto solamente tiene carácter informativo y en ningún momento expresa compromiso legal para suministrarle cobertura de seguro. La emisión de una póliza de seguro Bupa está sujeta a todas las evaluaciones de riesgo por parte de Bupa y a la recepción de todos los pagos de prima requeridos.

Sheet Comparacion de Beneficios
B2: 2022 BUPA CARE COMPARACION DE BENEFICIOS

Sheet Tablas (hidden)
A2: EXCLUSIVE | J2: FACTOR SEMESTRAL : | L2: 0.53
A3: TARIFAS ANUALES
A4: EDAD | J4: Valor original | P4: Con 70%
D5: DW2 | E5: DW3 | F5: DW4 | G5: DW5 | H5: DW6 | J5: DW2 | K5: DW3 | L5: DW4 | M5: DW5 | N5: DW6 | P5: DW2 | Q5: DW3 | R5: DW4 | S5: DW5 | T5: DW6
A6: 18 | B6: - 24 | D6: =P6 -> 6009.1 | E6: =Q6 -> 3980.5 | F6: =R6 -> 2845.1 | G6: =S6 -> 2012.1 | H6: =T6 -> 1585.1 | J6: 8563 | K6: 5665 | L6: 4043 | M6: 2853 | N6: 2243 | P6: =(J6-50)*0.7+50 -> 6009.1 | Q6: =(K6-50)*0.7+50 -> 3980.5 | R6: 2845.1 | S6: 2012.1 | T6: 1585.1
A7: 25 | B7: - 29 | D7: 6302.4 | E7: 4394.9 | F7: 3148.2 | G7: 2223.5 | H7: 1753.1 | J7: 8982 | K7: 6257 | L7: 4476 | M7: 3155 | N7: 2483 | P7: =(J7-50)*0.7+50 -> 6302.4 | Q7: =(K7-50)*0.7+50 -> 4394.9 | R7: =(L7-50)*0.7+50 -> 3148.2 | S7: =(M7-50)*0.7+50 -> 2223.5 | T7: =(N7-50)*0.7+50 -> 1753.1
A8: 30 | B8: - 34 | D8: 6553.7 | E8: 4710.6 | F8: 3522.7 | G8: 2658.9 | H8: 2101 | J8: 9341 | K8: 6708 | L8: 5011 | M8: 3777 | N8: 2980 | P8: 6553.7 | Q8: 4710.6 | R8: 3522.7 | S8: 2658.9 | T8: 2101
A9: 35 | B9: - 39 | D9: 7340.5 | E9: 5273.4 | F9: 3944.8 | G9: 2978.1 | H9: 2350.9 | J9: 10465 | K9: 7512 | L9: 5614 | M9: 4233 | N9: 3337 | P9: 7340.5 | Q9: 5273.4 | R9: 3944.8 | S9: 2978.1 | T9: 2350.9
A10: 40 | B10: - 44 | D10: 8503.9 | E10: 5761.3 | F10: 4376.7 | G10: 3269.3 | H10: 2581.2 | J10: 12127 | K10: 8209 | L10: 6231 | M10: 4649 | N10: 3666 | P10: 8503.9 | Q10: 5761.3 | R10: 4376.7 | S10: 3269.3 | T10: 2581.2
A11: 45 | B11: - 49 | D11: 9503.5 | E11: 6443.1 | F11: 4884.9 | G11: 3653.6 | H11: 2882.9 | J11: 13555 | K11: 9183 | L11: 6957 | M11: 5198 | N11: 4097 | P11: 9503.5 | Q11: 6443.1 | R11: 4884.9 | S11: 3653.6 | T11: 2882.9
A12: 50 | B12: - 54 | D12: 12157.9 | E12: 8444.4 | F12: 6371 | G12: 5153 | H12: 4068 | J12: 17347 | K12: 12042 | L12: 9080 | M12: 7340 | N12: 5790 | P12: 12157.9 | Q12: 8444.4 | R12: 6371 | S12: 5153 | T12: 4068
A13: 55 | B13: - 59 | D13: 12931.4 | E13: 8984.8 | F13: 6777 | G13: 5480.6 | H13: 4328.4 | J13: 18452 | K13: 12814 | L13: 9660 | M13: 7808 | N13: 6162 | P13: 12931.4 | Q13: 8984.8 | R13: 6777 | S13: 5480.6 | T13: 4328.4
A14: 60 | D14: 14084.3 | E14: 9800.3 | F14: 7792 | G14: 6596.4 | H14: 5372.1 | J14: 20099 | K14: 13979 | L14: 11110 | M14: 9402 | N14: 7653 | P14: 14084.3 | Q14: 9800.3 | R14: 7792 | S14: 6596.4 | T14: 5372.1
A15: 61 | D15: 15132.2 | E15: 10529 | F15: 8363.9 | G15: 7088.5 | H15: 5768.3 | J15: 21596 | K15: 15020 | L15: 11927 | M15: 10105 | N15: 8219 | P15: 15132.2 | Q15: 10529 | R15: 8363.9 | S15: 7088.5 | T15: 5768.3
A16: 62 | D16: 16566.5 | E16: 11526.5 | F16: 9163.3 | G16: 7754.9 | H16: 6313.6 | J16: 23645 | K16: 16445 | L16: 13069 | M16: 11057 | N16: 8998 | P16: 16566.5 | Q16: 11526.5 | R16: 9163.3 | S16: 7754.9 | T16: 6313.6
A17: 63 | D17: 17610.9 | E17: 12254.5 | F17: 9737.3 | G17: 8249.8 | H17: 6713.3 | J17: 25137 | K17: 17485 | L17: 13889 | M17: 11764 | N17: 9569 | P17: 17610.9 | Q17: 12254.5 | R17: 9737.3 | S17: 8249.8 | T17: 6713.3
A18: 64 | D18: 19048 | E18: 13260.4 | F18: 10534.6 | G18: 8921.8 | H18: 7260.7 | J18: 27190 | K18: 18922 | L18: 15028 | M18: 12724 | N18: 10351 | P18: 19048 | Q18: 13260.4 | R18: 10534.6 | S18: 8921.8 | T18: 7260.7
A19: 65 | D19: 24890.9 | E19: 17288.2 | F19: 13312.2 | G19: 11889.8 | H19: 10230.1 | J19: 35537 | K19: 24676 | L19: 18996 | M19: 16964 | N19: 14593 | P19: 24890.9 | Q19: 17288.2 | R19: 13312.2 | S19: 11889.8 | T19: 10230.1
A20: 66 | D20: 28913.1 | E20: 20082.6 | F20: 15466.8 | G20: 13814.8 | H20: 11883.5 | J20: 41283 | K20: 28668 | L20: 22074 | M20: 19714 | N20: 16955 | P20: 28913.1 | Q20: 20082.6 | R20: 15466.8 | S20: 13814.8 | T20: 11883.5
A21: 67 | D21: 31580.8 | E21: 21931.3 | F21: 16892 | G21: 15086.7 | H21: 12975.5 | J21: 45094 | K21: 31309 | L21: 24110 | M21: 21531 | N21: 18515 | P21: 31580.8 | Q21: 21931.3 | R21: 16892 | S21: 15086.7 | T21: 12975.5
A22: 68 | D22: 34963.9 | E22: 24281.2 | F22: 18699.4 | G22: 16705.1 | H22: 14369.9 | J22: 49927 | K22: 34666 | L22: 26692 | M22: 23843 | N22: 20507 | P22: 34963.9 | Q22: 24281.2 | R22: 18699.4 | S22: 16705.1 | T22: 14369.9
A23: 69 | D23: 38470.2 | E23: 26717.9 | F23: 20571.2 | G23: 18374.6 | H23: 15807 | J23: 54936 | K23: 38147 | L23: 29366 | M23: 26228 | N23: 22560 | P23: 38470.2 | Q23: 26717.9 | R23: 20571.2 | S23: 18374.6 | T23: 15807
A24: 70 | D24: 47339.2 | E24: 32523.7 | F24: 24214.7 | G24: 21408.4 | H24: 18586.7 | J24: 67606 | K24: 46441 | L24: 34571 | M24: 30562 | N24: 26531 | P24: 47339.2 | Q24: 32523.7 | R24: 24214.7 | S24: 21408.4 | T24: 18586.7
A25: 71 | D25: 49197 | E25: 33801.9 | F25: 25164.6 | G25: 22249.8 | H25: 19316.1 | J25: 70260 | K25: 48267 | L25: 35928 | M25: 31764 | N25: 27573 | P25: 49197 | Q25: 33801.9 | R25: 25164.6 | S25: 22249.8 | T25: 19316.1
A26: 72 | D26: 50591.4 | E26: 34752.5 | F26: 25873.7 | G26: 22878.4 | H26: 19867 | J26: 72252 | K26: 49625 | L26: 36941 | M26: 32662 | N26: 28360 | P26: 50591.4 | Q26: 34752.5 | R26: 25873.7 | S26: 22878.4 | T26: 19867
A27: 73 | D27: 52448.5 | E27: 36030 | F27: 26824.3 | G27: 23721.2 | H27: 20594.3 | J27: 74905 | K27: 51450 | L27: 38299 | M27: 33866 | N27: 29399 | P27: 52448.5 | Q27: 36030 | R27: 26824.3 | S27: 23721.2 | T27: 20594.3
A28: 74 | D28: 53375.3 | E28: 36665.6 | F28: 27300.3 | G28: 24137.7 | H28: 20957.6 | J28: 76229 | K28: 52358 | L28: 38979 | M28: 34461 | N28: 29918 | P28: 53375.3 | Q28: 36665.6 | R28: 27300.3 | S28: 24137.7 | T28: 20957.6
A29: 75 | B29: o más | D29: 55698.6 | E29: 38263.7 | F29: 28486.1 | G29: 25189.1 | H29: 21870.4 | J29: 79548 | K29: 54641 | L29: 40673 | M29: 35963 | N29: 31222 | P29: 55698.6 | Q29: 38263.7 | R29: 28486.1 | S29: 25189.1 | T29: 21870.4
A30: 1 | B30: Hijo | D30: 2081.8 | E30: 1531.6 | F30: 1260.7 | G30: 1051.4 | H30: 821.1 | J30: 2974 | K30: 2188 | L30: 1801 | M30: 1502 | N30: 1173 | P30: =J30*0.7 -> 2081.8 | Q30: =K30*0.7 -> 1531.6 | R30: 1260.7 | S30: 1051.4 | T30: 821.1
A31: 2 | B31: Hijos | D31: 3307.5 | E31: 2438.8 | F31: 2002.7 | G31: 1670.9 | H31: 1299.9 | J31: 4725 | K31: 3484 | L31: 2861 | M31: 2387 | N31: 1857 | P31: =J31*0.7 -> 3307.5 | Q31: =K31*0.7 -> 2438.8 | R31: =L31*0.7 -> 2002.7 | S31: =M31*0.7 -> 1670.9 | T31: =N31*0.7 -> 1299.9
A32: 3 | B32: Hijos o más | D32: 4850.3 | E32: 3570 | F32: 2936.5 | G32: 2450 | H32: 1908.2 | J32: 6929 | K32: 5100 | L32: 4195 | M32: 3500 | N32: 2726 | P32: 4850.3 | Q32: 3570 | R32: 2936.5 | S32: 2450 | T32: 1908.2
A33: 1 | B33: Rider Comp. Maternidad | D33: 0 | E33: 0 | F33: 225 | G33: 225 | H33: 225
A34: 1 | B34: Transplante de organos | D34: 0 | E34: 0 | F34: 0 | G34: 0 | H34: 0
A36: TARIFAS SEMESTRALES
A37: EDAD
D38: DW2 | E38: DW3 | F38: DW4 | G38: DW5 | H38: DW6
A39: 18 | B39: - 24 | D39: =D6*$L$2 -> 3184.823 | E39: =E6*$L$2 -> 2109.665 | F39: 1507.903 | G39: 1066.413 | H39: 840.103
A40: 25 | B40: - 29 | D40: =D7*$L$2 -> 3340.272 | E40: 2329.297 | F40: 1668.546 | G40: 1178.455 | H40: 929.143
A41: 30 | B41: - 34 | D41: =D8*$L$2 -> 3473.461 | E41: 2496.618 | F41: 1867.031 | G41: 1409.217 | H41: 1113.53
A42: 35 | B42: - 39 | D42: =D9*$L$2 -> 3890.465 | E42: 2794.902 | F42: 2090.744 | G42: 1578.393 | H42: 1245.977
A43: 40 | B43: - 44 | D43: =D10*$L$2 -> 4507.067 | E43: 3053.489 | F43: 2319.651 | G43: 1732.729 | H43: 1368.036
A44: 45 | B44: - 49 | D44: =D11*$L$2 -> 5036.855 | E44: 3414.843 | F44: 2588.997 | G44: 1936.408 | H44: 1527.937
A45: 50 | B45: - 54 | D45: =D12*$L$2 -> 6443.687 | E45: 4475.532 | F45: 3376.63 | G45: 2731.09 | H45: 2156.04
A46: 55 | B46: - 59 | D46: =D13*$L$2 -> 6853.642 | E46: 4761.944 | F46: 3591.81 | G46: 2904.718 | H46: 2294.052
A47: 60 | D47: =D14*$L$2 -> 7464.679 | E47: 5194.159 | F47: 4129.76 | G47: 3496.092 | H47: 2847.213
A48: 61 | D48: =D15*$L$2 -> 8020.066 | E48: 5580.37 | F48: 4432.867 | G48: 3756.905 | H48: 3057.199
A49: 62 | D49: =D16*$L$2 -> 8780.245 | E49: 6109.045 | F49: 4856.549 | G49: 4110.097 | H49: 3346.208
A50: 63 | D50: =D17*$L$2 -> 9333.777 | E50: 6494.885 | F50: 5160.769 | G50: 4372.394 | H50: 3558.049
A51: 64 | D51: =D18*$L$2 -> 10095.44 | E51: 7028.012 | F51: 5583.338 | G51: 4728.554 | H51: =H18*$L$2 -> 3848.171
A52: 65 | D52: =D19*$L$2 -> 13192.177 | E52: 9162.746 | F52: 7055.466 | G52: 6301.594 | H52: 5421.953
A53: 66 | D53: =D20*$L$2 -> 15323.943 | E53: 10643.778 | F53: 8197.404 | G53: 7321.844 | H53: 6298.255
A54: 67 | D54: =D21*$L$2 -> 16737.824 | E54: 11623.589 | F54: 8952.76 | G54: 7995.951 | H54: 6877.015
A55: 68 | D55: =D22*$L$2 -> 18530.867 | E55: 12869.036 | F55: 9910.682 | G55: 8853.703 | H55: 7616.047
A56: 69 | D56: =D23*$L$2 -> 20389.206 | E56: 14160.487 | F56: 10902.736 | G56: 9738.538 | H56: 8377.71
A57: 70 | D57: =D24*$L$2 -> 25089.776 | E57: 17237.561 | F57: 12833.791 | G57: 11346.452 | H57: 9850.951
A58: 71 | D58: =D25*$L$2 -> 26074.41 | E58: 17915.007 | F58: 13337.238 | G58: 11792.394 | H58: 10237.533
A59: 72 | D59: =D26*$L$2 -> 26813.442 | E59: 18418.825 | F59: 13713.061 | G59: 12125.552 | H59: 10529.51
A60: 73 | D60: =D27*$L$2 -> 27797.705 | E60: 19095.9 | F60: 14216.879 | G60: 12572.236 | H60: 10914.979
A61: 74 | D61: =D28*$L$2 -> 28288.909 | E61: 19432.768 | F61: 14469.159 | G61: 12792.981 | H61: 11107.528
A62: 75 | B62: o más | D62: =D29*$L$2 -> 29520.258 | E62: 20279.761 | F62: 15097.633 | G62: 13350.223 | H62: 11591.312
A63: 1 | B63: Hijo | D63: =D30*$L$2 -> 1103.354 | E63: 811.748 | F63: 668.171 | G63: 557.242 | H63: 435.183
A64: 2 | B64: Hijos | D64: =D31*$L$2 -> 1752.975 | E64: 1292.564 | F64: 1061.431 | G64: 885.577 | H64: 688.947
A65: 3 | B65: Hijos o más | D65: =D32*$L$2 -> 2570.659 | E65: 1892.1 | F65: 1556.345 | G65: 1298.5 | H65: 1011.346
A66: 1 | B66: Rider Comp. Maternidad | D66: =+D33*$L$2 -> 0 | E66: 0 | F66: 119.25 | G66: 119.25 | H66: 119.25
A67: 1 | B67: Transplante de organos | D67: 0 | E67: 0 | F67: 0 | G67: 0 | H67: 0
A69: DIAMOND (LATINAMERICA ONLY)
A70: TARIFAS ANUALES
A71: EDAD
A73: 18 | B73: - 24
A74: 25 | B74: - 29
A75: 30 | B75: - 34
A76: 35 | B76: - 39
A77: 40 | B77: - 44
A78: 45 | B78: - 49
A79: 50 | B79: - 54
A80: 55 | B80: - 59
A81: 60
A82: 61
A83: 62
A84: 63
A85: 64
A86: 65
A87: 66
A88: 67
A89: 68
A90: 69
A91: 70
A92: 71
A93: 72
A94: 73
A95: 74
A96: 75 | B96: o más
A97: 1 | B97: Hijo
A98: 2 | B98: Hijos
A99: 3 | B99: Hijos o más
A100: 1 | B100: Rider Comp. Maternidad
A101: 1 | B101: Transplante de organos
A103: TARIFAS SEMESTRALES
A104: EDAD
A106: 18 | B106: - 24
A107: 25 | B107: - 29
A108: 30 | B108: - 34
A109: 35 | B109: - 39
A110: 40 | B110: - 44
A111: 45 | B111: - 49
A112: 50 | B112: - 54
A113: 55 | B113: - 59
A114: 60
A115: 61
A116: 62
A117: 63
A118: 64
A119: 65
A120: 66
A121: 67
A122: 68
A123: 69
A124: 70
A125: 71
A126: 72
A127: 73
A128: 74
A129: 75 | B129: o más
A130: 1 | B130: Hijo
A131: 2 | B131: Hijos
A132: 3 | B132: Hijos o más
A133: 1 | B133: Rider Comp. Maternidad
A134: 1 | B134: Transplante de organos
A136: PRIVILEGE
A137: TARIFAS ANUALES
A138: EDAD | J138: ORIGINAL | P138: 0.7
D139: CW2 | E139: CW3 | F139: CW4 | G139: CW5 | H139: CW6 | J139: CW2 | K139: CW3 | L139: CW4 | M139: CW5 | N139: CW6 | P139: CW2 | Q139: CW3 | R139: CW4 | S139: CW5 | T139: CW6
A140: 18 | B140: - 24 | D140: =P140 -> 5057.1 | E140: =Q140 -> 3481.4 | F140: =R140 -> 2472 | G140: =S140 -> 1739.1 | H140: =T140 -> 1328.2 | J140: 7203 | K140: 4952 | L140: 3510 | M140: 2463 | N140: 1876 | P140: =(J140-50)*0.7+50 -> 5057.1 | Q140: =(K140-50)*0.7+50 -> 3481.4 | R140: =(L140-50)*0.7+50 -> 2472 | S140: =(M140-50)*0.7+50 -> 1739.1 | T140: =(N140-50)*0.7+50 -> 1328.2
A141: 25 | B141: - 29 | D141: 5304.9 | E141: 3847.5 | F141: 2737.3 | G141: 1926 | H141: 1473.8 | J141: 7557 | K141: 5475 | L141: 3889 | M141: 2730 | N141: 2084 | P141: 5304.9 | Q141: 3847.5 | R141: 2737.3 | S141: 1926 | T141: 1473.8
A142: 30 | B142: - 34 | D142: 5543.6 | E142: 4122.6 | F142: 3064.9 | G142: 2329.9 | H142: 1780.4 | J142: 7898 | K142: 5868 | L142: 4357 | M142: 3307 | N142: 2522 | P142: 5543.6 | Q142: 4122.6 | R142: 3064.9 | S142: 2329.9 | T142: 1780.4
A143: 35 | B143: - 39 | D143: 6203.7 | E143: 4611.9 | F143: 3431.7 | G143: 2607.8 | H143: 1992.5 | J143: 8841 | K143: 6567 | L143: 4881 | M143: 3704 | N143: 2825 | P143: 6203.7 | Q143: 4611.9 | R143: 3431.7 | S143: 2607.8 | T143: 1992.5
A144: 40 | B144: - 44 | D144: 7178.8 | E144: 5050.8 | F144: 3813.9 | G144: 2873.1 | H144: 2196.2 | J144: 10234 | K144: 7194 | L144: 5427 | M144: 4083 | N144: 3116 | P144: 7178.8 | Q144: 5050.8 | R144: 3813.9 | S144: 2873.1 | T144: 2196.2
A145: 45 | B145: - 49 | D145: 8014.6 | E145: 5643.7 | F145: 4265.4 | G145: 3207.7 | H145: 2455.2 | J145: 11428 | K145: 8041 | L145: 6072 | M145: 4561 | N145: 3486 | P145: 8014.6 | Q145: 5643.7 | R145: 4265.4 | S145: 3207.7 | T145: 2455.2
A146: 50 | B146: - 54 | D146: 10473 | E146: 7436.4 | F146: 5593.3 | G146: 4571.3 | H146: 3497.5 | J146: 14940 | K146: 10602 | L146: 7969 | M146: 6509 | N146: 4975 | P146: 10473 | Q146: 7436.4 | R146: 5593.3 | S146: 4571.3 | T146: 3497.5
A147: 55 | B147: - 59 | D147: 11142.9 | E147: 7911 | F147: 5951 | G147: 4863.9 | H147: 3722.2 | J147: 15897 | K147: 11280 | L147: 8480 | M147: 6927 | N147: 5296 | P147: 11142.9 | Q147: 7911 | R147: 5951 | S147: 4863.9 | T147: 3722.2
A148: 60 | D148: 12133.4 | E148: 8592.1 | F148: 6767.2 | G148: 5784.4 | H148: 4646.2 | J148: 17312 | K148: 12253 | L148: 9646 | M148: 8242 | N148: 6616 | P148: 12133.4 | Q148: 8592.1 | R148: 6767.2 | S148: 5784.4 | T148: 4646.2
A149: 61 | D149: 13032.9 | E149: 9227 | F149: 7267.7 | G149: 6210.7 | H149: 4988.5 | J149: 18597 | K149: 13160 | L149: 10361 | M149: 8851 | N149: 7105 | P149: 13032.9 | Q149: 9227 | R149: 7267.7 | S149: 6210.7 | T149: 4988.5
A150: 62 | D150: 14265.6 | E150: 10103.4 | F150: 7958.6 | G150: 6798.7 | H150: 5463.8 | J150: 20358 | K150: 14412 | L150: 11348 | M150: 9691 | N150: 7784 | P150: 14265.6 | Q150: 10103.4 | R150: 7958.6 | S150: 6798.7 | T150: 5463.8
A151: 63 | D151: 15167.2 | E151: 10738.3 | F151: 8459.1 | G151: 7227.1 | H151: 5807.5 | J151: 21646 | K151: 15319 | L151: 12063 | M151: 10303 | N151: 8275 | P151: 15167.2 | Q151: 10738.3 | R151: 8459.1 | S151: 7227.1 | T151: 5807.5
A152: 64 | D152: 16403.4 | E152: 11616.8 | F152: 9150 | G152: 7817.2 | H152: 6282.1 | J152: 23412 | K152: 16574 | L152: 13050 | M152: 11146 | N152: 8953 | P152: 16403.4 | Q152: 11616.8 | R152: 9150 | S152: 7817.2 | T152: 6282.1
A153: 65 | D153: 21435.7 | E153: 15147.6 | F153: 11566.4 | G153: 10417 | H153: 8849.7 | J153: 30601 | K153: 21618 | L153: 16502 | M153: 14860 | N153: 12621 | P153: 21435.7 | Q153: 15147.6 | R153: 11566.4 | S153: 10417 | T153: 8849.7
A154: 66 | D154: 24902.1 | E154: 17595.5 | F154: 13434.7 | G154: 12102.6 | H154: 10283.3 | J154: 35553 | K154: 25115 | L154: 19171 | M154: 17268 | N154: 14669 | P154: 24902.1 | Q154: 17595.5 | R154: 13434.7 | S154: 12102.6 | T154: 10283.3
A155: 67 | D155: 27198.8 | E155: 19218.8 | F155: 14670.9 | G155: 13217 | H155: 11226.2 | J155: 38834 | K155: 27434 | L155: 20937 | M155: 18860 | N155: 16016 | P155: 27198.8 | Q155: 19218.8 | R155: 14670.9 | S155: 13217 | T155: 11226.2
A156: 68 | D156: 30116.4 | E156: 21277.5 | F156: 16248 | G156: 14638.7 | H156: 12429.5 | J156: 43002 | K156: 30375 | L156: 23190 | M156: 20891 | N156: 17735 | P156: 30116.4 | Q156: 21277.5 | R156: 16248 | S156: 14638.7 | T156: 12429.5
A157: 69 | D157: 33130.6 | E157: 23406.9 | F157: 17872.7 | G157: 16099.6 | H157: 13674.8 | J157: 47308 | K157: 33417 | L157: 25511 | M157: 22978 | N157: 19514 | P157: 33130.6 | Q157: 23406.9 | R157: 17872.7 | S157: 16099.6 | T157: 13674.8
A158: 70 | D158: 40768.3 | E158: 28496.6 | F158: 21033.2 | G158: 18759.6 | H158: 16082.8 | J158: 58219 | K158: 40688 | L158: 30026 | M158: 26778 | N158: 22954 | P158: 40768.3 | Q158: 28496.6 | R158: 21033.2 | S158: 18759.6 | T158: 16082.8
A159: 71 | D159: 42367.8 | E159: 29610.3 | F159: 21861.3 | G159: 19492.5 | H159: 16712.8 | J159: 60504 | K159: 42279 | L159: 31209 | M159: 27825 | N159: 23854 | P159: 42367.8 | Q159: 29610.3 | R159: 21861.3 | S159: 19492.5 | T159: 16712.8
A160: 72 | D160: 43562.7 | E160: 30452.4 | F160: 22478.7 | G160: 20046.2 | H160: 17185.3 | J160: 62211 | K160: 43482 | L160: 32091 | M160: 28616 | N160: 24529 | P160: 43562.7 | Q160: 30452.4 | R160: 22478.7 | S160: 20046.2 | T160: 17185.3
A161: 73 | D161: 45170.6 | E161: 31568.9 | F161: 23303.3 | G161: 20781.2 | H161: 17817.4 | J161: 64508 | K161: 45077 | L161: 33269 | M161: 29666 | N161: 25432 | P161: 45170.6 | Q161: 31568.9 | R161: 23303.3 | S161: 20781.2 | T161: 17817.4
A162: 74 | D162: 45967.2 | E162: 32128.2 | F162: 23712.8 | G162: 21148 | H162: 18131.7 | J162: 65646 | K162: 45876 | L162: 33854 | M162: 30190 | N162: 25881 | P162: 45967.2 | Q162: 32128.2 | R162: 23712.8 | S162: 21148 | T162: 18131.7
A163: 75 | B163: o más | D163: 47965.7 | E163: 33521.9 | F163: 24746 | G163: 22069.2 | H163: 18920.6 | J163: 68501 | K163: 47867 | L163: 35330 | M163: 31506 | N163: 27008 | P163: 47965.7 | Q163: 33521.9 | R163: 24746 | S163: 22069.2 | T163: 18920.6
A164: 1 | B164: Hijo | D164: 1748.6 | E164: 1277.5 | F164: 998.2 | G164: 834.4 | H164: 617.4 | J164: 2498 | K164: 1825 | L164: 1426 | M164: 1192 | N164: 882 | P164: =J164*0.7 -> 1748.6 | Q164: 1277.5 | R164: 998.2 | S164: 834.4 | T164: 617.4
A165: 2 | B165: Hijos | D165: 2782.5 | E165: 2034.9 | F165: 1587.6 | G165: 1327.9 | H165: 981.4 | J165: 3975 | K165: 2907 | L165: 2268 | M165: 1897 | N165: 1402 | P165: 2782.5 | Q165: 2034.9 | R165: 1587.6 | S165: 1327.9 | T165: 981.4
A166: 3 | B166: Hijos o más | D166: 4076.1 | E166: 2982 | F166: 2327.5 | G166: 1944.6 | H166: 1439.9 | J166: 5823 | K166: 4260 | L166: 3325 | M166: 2778 | N166: 2057 | P166: 4076.1 | Q166: 2982 | R166: 2327.5 | S166: 1944.6 | T166: 1439.9
A167: 1 | B167: Rider Comp. Maternidad | D167: 0 | E167: 0 | F167: 225 | G167: 225 | H167: 225
A168: 1 | B168: Transplante de organos | D168: 0 | E168: 0 | F168: 0 | G168: 0 | H168: 0
A170: TARIFAS SEMESTRALES
A171: EDAD
D172: CW2 | E172: CW3 | F172: CW4 | G172: CW5 | H172: CW6
A173: 18 | B173: - 24 | D173: =D140*$L$2 -> 2680.263 | E173: =E140*$L$2 -> 1845.142 | F173: 1310.16 | G173: 921.723 | H173: 703.946
A174: 25 | B174: - 29 | D174: =D141*$L$2 -> 2811.597 | E174: 2039.175 | F174: 1450.769 | G174: 1020.78 | H174: 781.114
A175: 30 | B175: - 34 | D175: =D142*$L$2 -> 2938.108 | E175: 2184.978 | F175: 1624.397 | G175: 1234.847 | H175: 943.612
A176: 35 | B176: - 39 | D176: =D143*$L$2 -> 3287.961 | E176: 2444.307 | F176: 1818.801 | G176: 1382.134 | H176: 1056.025
A177: 40 | B177: - 44 | D177: =D144*$L$2 -> 3804.764 | E177: 2676.924 | F177: 2021.367 | G177: 1522.743 | H177: 1163.986
A178: 45 | B178: - 49 | D178: =D145*$L$2 -> 4247.738 | E178: 2991.161 | F178: 2260.662 | G178: 1700.081 | H178: 1301.256
A179: 50 | B179: - 54 | D179: =D146*$L$2 -> 5550.69 | E179: 3941.292 | F179: 2964.449 | G179: 2422.789 | H179: 1853.675
A180: 55 | B180: - 59 | D180: =D147*$L$2 -> 5905.737 | E180: 4192.83 | F180: 3154.03 | G180: 2577.867 | H180: 1972.766
A181: 60 | D181: =D148*$L$2 -> 6430.702 | E181: 4553.813 | F181: 3586.616 | G181: 3065.732 | H181: 2462.486
A182: 61 | D182: =D149*$L$2 -> 6907.437 | E182: 4890.31 | F182: 3851.881 | G182: 3291.671 | H182: 2643.905
A183: 62 | D183: =D150*$L$2 -> 7560.768 | E183: 5354.802 | F183: 4218.058 | G183: 3603.311 | H183: 2895.814
A184: 63 | D184: =D151*$L$2 -> 8038.616 | E184: 5691.299 | F184: 4483.323 | G184: 3830.363 | H184: 3077.975
A185: 64 | D185: =D152*$L$2 -> 8693.802 | E185: 6156.904 | F185: 4849.5 | G185: 4143.116 | H185: 3329.513
A186: 65 | D186: =D153*$L$2 -> 11360.921 | E186: 8028.228 | F186: 6130.192 | G186: 5521.01 | H186: 4690.341
A187: 66 | D187: =D154*$L$2 -> 13198.113 | E187: 9325.615 | F187: 7120.391 | G187: 6414.378 | H187: 5450.149
A188: 67 | D188: =D155*$L$2 -> 14415.364 | E188: 10185.964 | F188: 7775.577 | G188: 7005.01 | H188: 5949.886
A189: 68 | D189: =D156*$L$2 -> 15961.692 | E189: 11277.075 | F189: 8611.44 | G189: 7758.511 | H189: 6587.635
A190: 69 | D190: =D157*$L$2 -> 17559.218 | E190: 12405.657 | F190: 9472.531 | G190: 8532.788 | H190: 7247.644
A191: 70 | D191: =D158*$L$2 -> 21607.199 | E191: 15103.198 | F191: 11147.596 | G191: 9942.588 | H191: 8523.884
A192: 71 | D192: =D159*$L$2 -> 22454.934 | E192: 15693.459 | F192: 11586.489 | G192: 10331.025 | H192: 8857.784
A193: 72 | D193: =D160*$L$2 -> 23088.231 | E193: 16139.772 | F193: 11913.711 | G193: 10624.486 | H193: 9108.209
A194: 73 | D194: =D161*$L$2 -> 23940.418 | E194: 16731.517 | F194: 12350.749 | G194: 11014.036 | H194: 9443.222
A195: 74 | D195: =D162*$L$2 -> 24362.616 | E195: 17027.946 | F195: 12567.784 | G195: 11208.44 | H195: 9609.801
A196: 75 | B196: o más | D196: =D163*$L$2 -> 25421.821 | E196: 17766.607 | F196: 13115.38 | G196: 11696.676 | H196: 10027.918
A197: 1 | B197: Hijo | D197: =D164*$L$2 -> 926.758 | E197: 677.075 | F197: 529.046 | G197: 442.232 | H197: 327.222
A198: 2 | B198: Hijos | D198: =D165*$L$2 -> 1474.725 | E198: 1078.497 | F198: 841.428 | G198: 703.787 | H198: 520.142
A199: 3 | B199: Hijos o más | D199: =D166*$L$2 -> 2160.333 | E199: 1580.46 | F199: 1233.575 | G199: 1030.638 | H199: 763.147
A200: 1 | B200: Rider Comp. Maternidad | D200: =+D167*$L$2 -> 0 | E200: 0 | F200: 119.25 | G200: 119.25 | H200: 119.25
A201: 1 | B201: Transplante de organos | D201: 0 | E201: 0 | F201: 0 | G201: 0 | H201: 0
A203: COMPLETE (LATINAMERICA ONLY)
A204: TARIFAS ANUALES
A205: EDAD
A207: 18 | B207: - 24
A208: 25 | B208: - 29
A209: 30 | B209: - 34
A210: 35 | B210: - 39
... 331 more rows
